bitfinex-derivatives/quotes_ETHF0:USTF0_20260102
["timestamp","ask_amount","ask_price","bid_price","bid_amount"]
[1767369055569,0.0048499,3092.5,3091.2,0.0048499]
[1767369055967,0.0048499,3092.5,3091.2,1.30000473]
[1767369056174,0.0048499,3092.5,3091.3,1.29515483]
[1767369056379,0.00377112,3093.1,3091.3,1.29515483]
[1767369056578,0.00377112,3093.1,3091.4,3.5761446]
[1767369056974,0.00377112,3093.1,3091.4,1.29515483]
[1767369057478,0.0048499,3092.6,3091.4,1.29515483]
[1767369057980,0.0048499,3092.6,3091.2,0.0048499]
[1767369058671,0.16182,3092.4,3091.2,0.0048499]
[1767369059077,1.31127284,3092.5,3091.2,0.0048499]
[1767369059272,1.31127284,3091.8,3090.5,0.00368836]
[1767369059478,1.47314284,3091.5,3090.5,0.00368836]
[1767369059887,1.47315284,3091.2,3089.0,1.29515483]
[1767369060277,0.0048499,3090.4,3089.8,0.0048499]
[1767369060576,1.31127284,3091.8,3089.8,1.30000473]
[1767369060775,1.47313284,3091.6,3089.5,0.16197]
[1767369060970,1.47313284,3091.6,3089.5,0.16527838]
[1767369061171,1.47313284,3091.6,3089.5,1.46043321]
[1767369061574,0.0048499,3090.9,3090.2,0.0048499]
[1767369062284,0.0048499,3090.9,3089.5,0.00330838]
[1767369062590,0.0048499,3090.9,3087.5,4.06339202]
[1767369062591,1.47320284,3090.3,3088.1,1.29515483]
[1767369062883,1.31127284,3090.8,3088.6,1.29515483]
[1767369063082,1.31127284,3090.8,3088.6,1.45717483]
[1767369063378,0.0048499,3090.9,3089.4,0.0048499]
[1767369063582,1.31612274,3090.9,3089.4,0.0081684]
[1767369063883,1.47802274,3090.9,3089.4,0.0081684]
[1767369064081,1.47318284,3090.8,3089.4,0.0081684]
[1767369064678,1.31127284,3090.6,3089.4,0.0081684]
[1767369064877,1.31127284,3090.4,3088.3,1.29515483]
[1767369065587,1.47320284,3090.4,3088.3,1.29515483]
[1767369065777,1.47320284,3090.4,3089.0,0.0048499]
[1767369066176,1.31127284,3090.2,3089.0,0.0048499]
[1767369067574,1.31127284,3090.8,3089.0,0.0048499]
[1767369067780,1.47318284,3090.7,3089.0,0.0048499]
[1767369068283,1.31127284,3090.7,3089.0,0.0048499]
[1767369068988,1.47802274,3090.9,3089.0,1.30000473]
[1767369070278,0.1667499,3090.9,3089.0,1.30000473]
[1767369070478,0.0048499,3090.9,3089.3,1.29515483]
[1767369072178,0.1667499,3090.9,3089.0,1.30000473]
[1767369072380,0.1667499,3090.9,3089.0,1.46199473]
[1767369073181,0.16191,3090.7,3089.0,1.30000473]
[1767369073381,0.16191,3090.6,3089.0,1.30000473]
[1767369073587,1.31127284,3090.6,3089.0,0.0048499]
[1767369073883,0.16193,3090.3,3089.0,0.0048499]
[1767369074279,1.47320284,3090.3,3089.0,0.0048499]
[1767369074887,1.47321284,3090.2,3089.0,0.0048499]
[1767369075384,1.47318284,3090.7,3089.0,0.0048499]
[1767369075982,1.31127284,3090.5,3089.0,0.0048499]
[1767369076387,1.47322284,3089.9,3088.3,0.0036178]
[1767369077385,2.55624042,3089.8,3088.3,0.0036178]
[1767369077580,0.162,3089.0,3086.8,1.29515483]
[1767369077790,0.162,3089.0,3086.8,1.45726483]
[1767369078290,0.162,3089.0,3087.2,1.29515483]
[1767369078485,0.00485782,3088.4,3087.2,1.29771454]
[1767369078887,0.00485782,3088.4,3087.2,0.00255971]
[1767369079484,1.31613066,3088.4,3087.2,0.00255971]
[1767369079691,1.31613066,3088.4,3086.2,0.89052054]
[1767369079692,0.16205,3088.0,3086.2,0.50890798]
[1767369079895,1.31127284,3088.0,3086.2,0.50890798]
[1767369080587,0.16204,3088.3,3086.3,1.29515483]
[1767369080788,1.47332284,3088.1,3086.2,0.51213543]
[1767369081689,1.47332284,3088.0,3086.2,0.51213543]
[1767369082000,1.31127284,3087.8,3086.2,0.51213543]
[1767369082486,1.31127284,3088.3,3086.2,0.51213543]
[1767369082685,1.31127284,3088.3,3086.3,1.29515483]
[1767369082882,1.31127284,3088.3,3086.4,1.29515483]
[1767369083888,0.00485782,3088.4,3086.6,2.54012241]
[1767369084089,0.00485782,3088.4,3087.1,1.29515483]
[1767369084285,0.00485782,3088.4,3087.3,1.29515483]
[1767369084495,0.00330253,3089.0,3087.6,1.29515483]
[1767369085396,1.47330284,3088.5,3086.5,1.29515483]
[1767369085598,1.47330284,3088.5,3086.2,0.67427543]
[1767369085791,1.47332284,3088.1,3086.2,0.51213543]
[1767369086189,1.47332284,3088.1,3086.2,1.84475733]
[1767369086386,0.00485782,3087.5,3086.2,1.84475733]
[1767369086591,0.00485782,3087.5,3086.3,1.40440371]
[1767369087299,0.00485782,3087.5,3086.2,0.51213543]
[1767369089190,0.00485782,3087.5,3085.3,4.549]
[1767369089191,1.2870697,3086.8,3084.0,1.24226371]
[1767369089397,1.24496758,3087.3,3082.9,10.17886598]
[1767369089398,4.854,3087.3,3084.7,1.24226371]
[1767369089602,5.01609,3087.3,3084.7,1.24226371]
[1767369089900,1.24496758,3086.2,3084.8,4.16932348]
[1767369090101,1.24496758,3085.7,3083.4,7.677]
[1767369090302,1.24734424,3085.7,3083.5,1.24226371]
[1767369090494,1.24734424,3085.7,3083.4,7.68032665]
[1767369090495,0.00485782,3084.9,3083.4,0.00332665]
[1767369090694,0.00485782,3084.9,3083.4,1.24559036]
[1767369090995,0.00485782,3084.9,3083.5,3.24]
[1767369091194,0.00485782,3084.9,3083.5,1.24226371]
[1767369091604,0.00237666,3085.7,3083.7,1.24226371]
[1767369092504,0.00237666,3085.7,3083.9,1.40452371]
[1767369092702,0.00237666,3085.7,3084.4,1.24712153]
[1767369093397,1.2870697,3087.2,3084.4,1.40936153]
[1767369093601,0.00485782,3086.1,3084.6,1.24226371]
[1767369093804,0.00485782,3086.1,3084.8,1.24226371]
[1767369094105,1.2870697,3087.2,3084.8,1.24226371]
[1767369094406,1.29047223,3087.2,3085.0,1.24226371]
[1767369094604,1.29047223,3087.2,3085.2,1.24226371]
[1767369094901,0.00340253,3087.2,3085.2,1.24226371]
[1767369095109,0.00485782,3086.5,3085.2,1.24226371]
[1767369095507,0.00485782,3086.5,3085.3,4.551]
[1767369095705,0.00485782,3086.5,3085.2,5.79326371]
[1767369095903,0.00485782,3086.5,3085.2,1.24226371]
[1767369098507,0.00340253,3087.2,3085.2,1.24226371]
[1767369098508,0.00340253,3087.2,3085.4,1.24226371]
[1767369098710,0.00340253,3087.2,3085.6,1.24226371]
[1767369099007,0.00340253,3087.2,3085.6,1.24592222]
[1767369099404,0.00485782,3086.7,3086.1,0.00485782]
[1767369099906,0.00340253,3087.2,3086.1,0.00485782]
[1767369100714,0.00485782,3087.0,3086.1,0.00485782]
[1767369103514,0.00340253,3087.2,3086.1,1.24712153]
[1767369104415,0.00321216,3087.0,3086.1,1.24712153]
[1767369105517,0.00321216,3087.0,3086.1,0.00485782]
[1767369107617,0.16531216,3087.0,3085.6,0.00365851]
[1767369108013,0.16213,3086.6,3085.6,0.00365851]
[1767369108311,0.16213,3086.6,3084.5,1.24226371]
[1767369108312,0.16213,3086.6,3084.7,0.707]
[1767369108711,0.16213,3086.6,3085.3,0.00485782]
[1767369109117,0.16213,3086.6,3085.3,0.00719693]
[1767369109815,0.16213,3086.5,3085.3,0.00719693]
[1767369110015,0.16216,3086.0,3084.0,1.24226371]
[1767369110320,0.16216,3086.0,3084.1,1.24226371]
[1767369111017,0.00485782,3085.4,3084.7,0.00485782]
[1767369112516,0.16213,3086.5,3084.7,1.24712153]
[1767369112721,1.2870697,3086.9,3084.9,1.24226371]
[1767369112921,0.1621,3087.0,3084.9,1.40447371]
[1767369113514,0.00485782,3086.3,3084.9,1.40447371]
[1767369115030,0.00485782,3086.3,3085.0,7.043]
[1767369115336,0.00485782,3086.3,3085.0,4.548]
[1767369115725,0.00485782,3086.3,3084.9,1.24226371]
[1767369117932,0.00485782,3086.3,3084.7,0.00485782]
[1767369118730,0.00485782,3086.3,3084.7,1.20890442]
[1767369119839,0.16699782,3086.3,3084.7,5.70290442]
[1767369120132,0.16215,3086.2,3084.7,1.20890442]
[1767369120331,1.30362587,3086.3,3084.7,0.00485782]
[1767369120527,0.00485782,3086.3,3084.7,1.20890442]
[1767369121035,0.16699782,3086.3,3084.7,1.20890442]
[1767369121236,0.16214,3086.2,3084.7,0.00485782]
[1767369121433,1.30362587,3086.3,3084.7,0.00485782]
[1767369121637,0.84106057,3086.2,3084.7,0.00485782]
[1767369121835,0.16214,3086.2,3084.7,0.00485782]
[1767369122136,1.29876805,3085.3,3083.1,2.87072916]
[1767369122333,0.16226,3084.1,3082.2,1.2040466]
[1767369122529,1.24496758,3083.8,3081.7,1.2040466]
[1767369122833,1.40726758,3083.3,3081.1,3.242]
[1767369123138,0.00261532,3083.3,3081.9,0.00486579]
[1767369123832,0.00261532,3083.3,3081.9,1.20891239]
[1767369124144,0.16223,3084.6,3082.1,1.3664066]
[1767369124341,1.29876805,3084.6,3082.1,1.3664066]
[1767369124638,0.16226,3084.1,3082.1,1.2040466]
[1767369124841,1.29876805,3084.7,3082.1,1.2040466]
[1767369125040,1.30253167,3084.7,3082.3,1.3663966]
[1767369125343,1.46104805,3083.7,3081.9,0.00486579]
[1767369125731,2.54373563,3083.5,3081.9,0.00486579]
[1767369125934,0.16229,3083.4,3081.9,0.00486579]
[1767369126132,1.46105805,3083.4,3081.9,0.00486579]
[1767369126334,1.46106805,3083.3,3081.9,0.00486579]
[1767369126732,0.1623,3083.3,3081.9,0.00486579]
[1767369127143,1.46106805,3083.3,3081.9,0.00486579]
[1767369127444,0.00322274,3083.8,3081.1,0.00326308]
[1767369127445,1.46109805,3082.7,3081.1,0.00326308]
[1767369127645,1.46110805,3082.6,3081.1,0.00326308]
[1767369127949,1.46112805,3082.2,3080.0,1.2040466]
[1767369128344,3.244,3082.7,3080.2,1.2040466]
[1767369128545,0.16233,3082.7,3080.8,1.20891239]
[1767369128842,0.16502913,3082.7,3080.8,1.21221267]
[1767369129440,0.00322274,3082.1,3080.8,1.21221267]
[1767369130038,0.00269913,3082.7,3081.0,1.2040466]
[1767369130441,0.00269913,3082.7,3080.8,4.55816607]
[1767369130442,0.00269913,3082.7,3081.2,1.2040466]
[1767369130844,0.00269913,3082.7,3081.4,1.3664366]
[1767369131444,0.16224,3084.5,3082.0,1.2040466]
[1767369131651,0.16224,3084.4,3082.9,0.00486579]
[1767369131841,1.29876805,3084.3,3082.9,0.00486579]
[1767369132040,1.29876805,3084.3,3082.0,1.2040466]
[1767369132252,1.29876805,3084.0,3082.0,1.2040466]
[1767369132448,1.46411495,3084.0,3082.0,1.2040466]
[1767369132643,0.1653469,3084.0,3082.0,1.2040466]
[1767369132837,1.46411495,3084.0,3082.0,1.2040466]
[1767369133237,1.46411495,3084.0,3081.4,7.3]
[1767369133238,0.0030869,3084.0,3082.7,0.00486579]
[1767369133737,0.0030869,3084.0,3082.7,1.20891239]
[1767369133943,0.0030869,3084.0,3082.9,1.2040466]
[1767369134243,1.29876805,3085.2,3082.9,1.2040466]
[1767369134449,0.16221,3085.0,3082.9,1.2040466]
[1767369135149,0.1646491,3085.0,3082.9,1.2040466]
[1767369135541,0.0024391,3085.0,3083.1,1.3663566]
[1767369135745,0.0024391,3085.0,3083.1,1.36945919]
[1767369136545,0.1646491,3085.0,3083.1,1.20714919]
[1767369136749,0.16223,3084.7,3083.1,0.00310259]
[1767369137549,1.46099805,3084.6,3083.1,0.00310259]
[1767369138045,0.0024391,3085.0,3083.1,1.20714919]
[1767369138248,0.0024391,3085.0,3083.5,1.3663266]
[1767369138751,0.0024391,3085.0,3083.7,1.2040466]
[1767369138951,0.0024391,3085.0,3083.6,0.16228]
[1767369138952,0.16214,3086.3,3084.0,1.2040466]
[1767369139258,0.16215,3086.2,3084.8,0.00486579]
[1767369139746,0.16215,3086.1,3084.8,0.00486579]
[1767369139945,0.16216,3085.9,3084.8,0.00486579]
[1767369141151,0.00374122,3086.1,3084.8,0.00486579]
[1767369143446,0.16216,3086.0,3084.8,0.00486579]
[1767369144048,1.30250927,3086.1,3083.8,0.16227]
[1767369144648,1.30250927,3086.1,3083.8,1.3663166]
[1767369144949,0.16218,3085.5,3083.8,1.2040466]
[1767369145148,0.00486579,3085.0,3084.3,0.00486579]
[1767369146151,0.16221,3084.9,3083.2,1.2040466]
[1767369146955,0.16221,3084.9,3083.7,0.00486579]
[1767369147756,0.00486579,3085.0,3083.7,0.00486579]
[1767369147757,0.16222,3084.8,3083.7,0.00486579]
[1767369148056,0.16224,3084.3,3083.1,0.00310259]
[1767369148257,1.299894,3084.7,3083.1,0.00310259]
[1767369148860,1.299894,3084.7,3083.6,0.00486579]
[1767369149763,0.16223,3084.6,3083.6,0.00486579]
[1767369151361,0.16223,3084.5,3083.6,0.00486579]
[1767369151569,0.16224,3084.4,3083.6,0.00486579]
[1767369151772,0.16224,3084.4,3083.1,0.00310259]
[1767369152761,0.16224,3084.4,3083.4,0.00486579]
[1767369157569,0.16226,3084.0,3083.1,0.00310259]
[1767369157767,0.16226,3084.1,3082.4,1.19747568]
[1767369158772,0.16226,3084.1,3082.9,0.00486579]
[1767369159273,0.16226,3084.0,3082.9,0.00486579]
[1767369159472,0.16227,3083.9,3082.9,0.00486579]
[1767369159674,0.16227,3083.8,3082.9,0.00486579]
[1767369160566,0.00370336,3083.9,3082.9,0.00486579]
[1767369161875,0.00370336,3083.9,3082.9,1.20234147]
[1767369162270,0.00370336,3083.9,3082.9,0.00486579]
[1767369164378,0.16227,3083.8,3082.9,0.00486579]
[1767369164573,0.16228,3083.6,3082.9,0.00486579]
[1767369164880,0.16228,3083.6,3082.4,0.00264411]
[1767369165368,0.00370336,3083.9,3082.4,0.00264411]
[1767369165369,0.16229,3083.4,3082.4,0.00264411]
[1767369165876,0.00486579,3083.2,3082.4,0.00264411]
[1767369170168,0.00370336,3083.9,3082.4,1.20011979]
[1767369170380,0.00370336,3083.9,3082.4,1.36245979]
[1767369171181,0.00370336,3083.9,3082.8,0.00486579]
[1767369172280,0.00486579,3083.7,3082.8,0.00486579]
[1767369175176,0.00370336,3083.9,3082.8,0.00486579]
[1767369175177,0.00370336,3083.9,3082.8,1.20234147]
[1767369175383,0.16221,3085.0,3083.0,1.19747568]
[1767369176084,0.16221,3085.0,3083.0,1.35978568]
[1767369176281,0.00486579,3084.3,3083.0,1.35978568]
[1767369176579,0.00906986,3084.3,3083.0,1.35978568]
[1767369178280,1.27769186,3085.5,3083.1,1.21156778]
[1767369178485,1.43987186,3085.5,3083.4,1.21156778]
[1767369178683,1.43988186,3085.4,3083.4,1.21156778]
[1767369179086,0.16219,3085.4,3083.4,1.37385778]
[1767369179280,0.16017,3085.3,3083.4,1.37385778]
[1767369179480,0.00486579,3084.7,3083.4,1.37385778]
[1767369180181,0.16017,3085.3,3083.7,1.21156778]
[1767369180491,0.16017,3085.3,3083.8,2.87072916]
[1767369180674,0.16017,3085.3,3083.7,1.21156778]
[1767369181481,0.16017,3085.3,3083.8,0.16227]
[1767369181787,0.16017,3085.3,3083.9,1.21156778]
[1767369182384,0.00324382,3084.9,3083.9,1.21156778]
[1767369183185,0.16212,3086.6,3084.6,1.37378778]
[1767369183494,0.16214,3086.3,3084.6,1.21156778]
[1767369184087,0.16214,3086.3,3085.1,0.00486579]
[1767369184274,0.16558563,3086.3,3085.1,0.00808775]
[1767369184475,0.16216,3085.9,3084.1,1.21156778]
[1767369184681,1.28113749,3086.3,3084.1,1.21156778]
[1767369184882,0.16217,3085.8,3084.1,1.21156778]
[1767369185386,0.00344563,3086.3,3084.7,1.21156778]
[1767369185584,0.00486579,3085.8,3085.2,0.00486579]
[1767369186477,0.00344563,3086.3,3085.2,0.00486579]
[1767369187283,0.16558563,3086.3,3085.2,0.00486579]
[1767369187781,1.44327749,3086.3,3085.2,0.00486579]
[1767369189084,2.52632664,3086.0,3084.7,0.00285598]
[1767369189288,0.16217,3085.8,3084.7,0.00285598]
[1767369189891,1.27769186,3085.9,3083.6,1.37384778]
[1767369190386,0.00486579,3085.1,3084.4,0.00486579]
[1767369190586,0.00486579,3085.1,3083.1,5.17056778]
[1767369190885,0.00486579,3085.1,3083.4,1.21156778]
[1767369191192,0.00486579,3085.1,3083.5,0.16228]
[1767369191490,0.00486579,3085.1,3084.0,0.00486579]
[1767369191689,0.00486579,3085.1,3084.0,1.21643357]
[1767369192484,0.16219,3085.4,3084.0,0.00486579]
[1767369192681,0.16219,3085.3,3084.0,0.00486579]
[1767369193288,0.00486579,3085.0,3084.0,0.00486579]
[1767369193993,0.16707579,3085.0,3084.0,0.00486579]
[1767369195290,0.00486579,3085.0,3084.0,0.00486579]
[1767369200089,1.43983186,3086.4,3084.0,1.21643357]
[1767369200295,0.16558563,3086.3,3084.2,1.21156778]
[1767369200796,0.16558563,3086.3,3084.4,1.21156778]
[1767369201499,0.00344563,3086.3,3084.6,1.21156778]
[1767369202097,0.00344563,3086.3,3084.8,1.21156778]
[1767369202595,0.16208,3087.4,3085.2,1.21156778]
[1767369202899,0.16208,3087.4,3085.6,1.21643357]
[1767369203091,0.16209,3087.3,3085.6,1.21643357]
[1767369203291,0.16209,3087.2,3085.6,1.21643357]
[1767369203697,0.16257335,3086.6,3085.6,0.00778087]
[1767369204198,0.16207,3087.6,3085.6,1.21934865]
[1767369204403,1.43973186,3088.2,3085.8,1.37372778]
[1767369204698,1.43973186,3088.2,3086.0,1.21156778]
[1767369204895,1.43973186,3088.2,3086.1,5.75456778]
[1767369205193,0.16205,3088.1,3086.1,5.75456778]
[1767369205399,0.16205,3088.0,3086.1,5.75456778]
[1767369206396,1.25125285,3088.1,3086.1,5.75456778]
[1767369206591,1.25125285,3088.1,3085.6,0.00778087]
[1767369206592,0.16208,3087.5,3085.6,0.00778087]
[1767369206896,0.16208,3087.5,3085.6,1.27422489]
[1767369207691,0.0033347,3088.1,3085.8,1.26644402]
[1767369208101,0.0033347,3088.1,3086.0,1.26644402]
[1767369209001,1.24791815,3088.0,3086.0,1.26644402]
[1767369209201,0.16207,3087.6,3085.6,0.00778087]
[1767369209393,0.16211,3086.9,3085.6,0.00778087]
[1767369209595,0.16212,3086.8,3085.6,0.00778087]
[1767369209896,1.41004815,3086.5,3084.4,1.26644402]
[1767369210195,1.41004815,3086.5,3084.2,4.541]
[1767369210196,0.16213,3086.5,3084.6,1.26644402]
[1767369210792,0.00486579,3085.9,3085.2,0.00486579]
[1767369211000,0.00797562,3085.9,3085.2,0.00486579]
[1767369213597,0.00797562,3085.9,3084.6,0.00333316]
[1767369213598,1.41805377,3085.9,3084.6,0.00333316]
[1767369214103,1.41008815,3085.8,3084.6,0.00333316]
[1767369214599,0.16218,3085.6,3084.6,0.00333316]
[1767369214801,0.16218,3085.6,3084.8,0.00486579]
[1767369215598,1.41011815,3085.2,3083.1,1.26644402]
[1767369215799,1.41011815,3085.1,3083.1,1.26644402]
[1767369215994,0.1622,3085.1,3083.1,1.26644402]
[1767369216602,0.1622,3085.1,3083.8,0.00486579]
[1767369216802,0.16221,3084.9,3083.8,0.00486579]
[1767369221107,0.16222,3084.8,3083.8,0.00486579]
[1767369221309,0.16222,3084.8,3083.1,0.00298634]
[1767369221510,0.16222,3084.8,3083.1,1.26943036]
[1767369222310,0.00486579,3084.3,3083.6,0.00486579]
[1767369224206,0.00486579,3084.3,3083.1,0.00298634]
[1767369225012,0.00486579,3084.3,3083.1,1.26943036]
[1767369225211,0.00486579,3084.3,3083.4,0.00486579]
[1767369226911,1.41009815,3085.6,3083.4,1.27130981]
[1767369227111,1.24791815,3085.4,3083.4,1.27130981]
[1767369227413,1.24791815,3085.4,3083.4,0.00486579]
[1767369228014,0.00486579,3084.7,3083.4,0.00486579]
[1767369228415,0.00486579,3084.7,3083.4,1.27130981]
[1767369229007,0.16218,3085.6,3083.7,1.16303007]
[1767369229507,1.40768964,3085.5,3083.7,1.32530007]
[1767369230315,0.00486579,3084.9,3083.7,1.32530007]
[1767369230911,0.00486579,3084.9,3083.4,0.00486579]
[1767369231215,0.00486579,3084.9,3083.4,1.16789586]
[1767369233518,0.16707579,3084.9,3083.4,0.00486579]
[1767369234618,0.00486579,3084.9,3083.4,1.22500824]
[1767369236115,0.00486579,3084.9,3083.4,1.38729824]
[1767369236420,0.00310983,3085.9,3083.6,1.25721487]
[1767369236614,0.16218,3085.6,3083.9,1.25721487]
[1767369236811,1.33944411,3085.3,3083.4,1.26208066]
[1767369237320,0.16219,3085.3,3083.4,1.26208066]
[1767369237522,0.00486579,3084.7,3083.4,1.26208066]
[1767369237920,0.00486579,3084.7,3083.7,1.25721487]
[1767369238122,0.16219,3085.3,3083.7,1.25721487]
[1767369238818,1.17725411,3085.6,3083.4,0.00486579]
[1767369238819,1.17725411,3085.1,3083.4,0.00486579]
[1767369239118,0.00486579,3084.6,3083.4,0.00486579]
[1767369240119,0.00486579,3084.6,3083.4,1.26208066]
[1767369240310,0.00486579,3084.6,3083.4,0.00486579]
[1767369242422,0.16224,3084.4,3083.4,0.00486579]
[1767369243115,0.16226,3084.1,3083.4,0.00486579]
[1767369243316,0.16226,3084.1,3083.1,0.00298634]
[1767369244513,0.16226,3084.1,3083.3,0.00486579]
[1767369247122,1.17725411,3084.2,3083.1,0.00298634]
[1767369247324,1.33952411,3083.9,3082.5,0.16015]
[1767369248122,0.16228,3083.7,3082.9,0.00486579]
[1767369248422,0.16228,3083.6,3082.5,0.16015]
[1767369249123,0.00237512,3083.7,3082.5,1.41736487]
[1767369249316,1.17725411,3084.5,3082.8,1.26208066]
[1767369249517,1.33949411,3084.4,3082.8,0.00486579]
[1767369250113,1.33949411,3084.4,3082.8,1.26208066]
[1767369250326,0.00381794,3084.4,3082.8,1.26208066]
[1767369251226,1.18107205,3084.4,3082.8,0.00486579]
[1767369251523,0.16225,3084.2,3082.8,0.00486579]
[1767369253427,1.33951411,3084.1,3082.8,0.00486579]
[1767369253927,0.16226,3084.1,3082.8,0.00486579]
[1767369255428,1.33951411,3084.1,3082.8,0.00486579]
[1767369256030,0.16226,3084.0,3082.8,0.00486579]
[1767369256423,1.17725411,3084.1,3082.5,0.16394996]
[1767369256623,0.16228,3083.6,3082.5,0.16394996]
[1767369257019,1.17725411,3084.1,3082.5,0.16394996]
[1767369257430,1.17725411,3084.1,3083.0,0.00486579]
[1767369257631,1.33951411,3084.1,3083.0,0.00486579]
[1767369258132,0.00381794,3084.4,3083.1,1.25721487]
[1767369258324,0.00381794,3084.4,3083.1,5.48947347]
[1767369258528,1.73926364,3086.7,3083.4,1.25721487]
[1767369258725,0.84650036,3086.6,3083.9,1.25721487]
[1767369258928,0.84650036,3086.5,3084.0,1.25721487]
[1767369259130,0.16213,3086.5,3084.0,1.25721487]
[1767369259430,0.00263354,3086.5,3084.0,1.25721487]
[1767369259627,0.00486579,3085.6,3084.9,0.00486579]
[1767369259936,0.00486579,3085.6,3084.9,0.00877115]
[1767369262228,0.00486579,3085.6,3083.2,2.87072916]
[1767369262229,0.16219,3085.4,3083.3,1.25721487]
[1767369263335,0.16219,3085.4,3084.0,0.00486579]
[1767369263631,0.16219,3085.3,3084.0,0.00486579]
[1767369265633,0.16219,3085.3,3084.0,1.26208066]
[1767369267034,0.16219,3085.3,3084.0,0.00486579]
[1767369267537,1.25099823,3085.6,3084.0,0.00486579]
[1767369267838,0.16221,3085.0,3084.0,0.00486579]
[1767369269238,0.00486579,3085.6,3084.0,0.00486579]
[1767369269438,0.16704579,3085.6,3084.0,0.00486579]
[1767369270137,0.16704579,3085.6,3084.0,1.21804581]
[1767369273647,0.00486579,3085.6,3084.0,1.38030581]
[1767369274046,0.16213,3086.6,3084.6,1.37541002]
[1767369274352,0.16209,3087.2,3085.1,1.21318002]
[1767369274648,0.1621,3087.1,3085.1,1.21318002]
[1767369275047,0.00486579,3086.1,3085.1,1.21318002]
[1767369276542,1.24613244,3087.5,3085.3,1.21318002]
[1767369276543,1.40821244,3087.5,3085.3,1.21318002]
[1767369276744,1.24613244,3087.4,3085.3,1.21318002]
[1767369276944,0.1621,3087.1,3085.3,1.21318002]
[1767369277444,0.16211,3087.0,3085.3,1.21318002]
[1767369277645,0.00486579,3086.5,3085.9,0.00486579]
[1767369277950,0.00486579,3086.5,3085.9,0.00801701]
[1767369279047,6.00486579,3086.5,3084.8,1.21318002]
[1767369279352,0.16215,3086.0,3084.3,1.21318002]
[1767369279648,1.25099823,3086.5,3084.3,1.21318002]
[1767369279955,0.16217,3085.8,3084.3,1.21318002]
[1767369280248,0.16217,3085.8,3084.7,0.00486579]
[1767369281847,1.25099823,3086.5,3084.7,1.21804581]
[1767369282047,0.16213,3086.4,3084.7,1.21804581]
[1767369283845,0.00486579,3086.5,3084.7,1.21804581]
[1767369284953,0.00486579,3086.5,3084.7,1.38026581]
[1767369285251,0.16215,3086.2,3084.7,1.21804581]
[1767369285840,0.16215,3086.1,3084.7,1.21804581]
[1767369286847,0.00486579,3086.5,3084.7,1.21804581]
[1767369287243,0.16214,3086.4,3084.7,1.21804581]
[1767369288551,0.00486579,3086.5,3084.7,1.21804581]
[1767369288552,0.16214,3086.3,3084.7,1.21804581]
[1767369289851,1.22673001,3086.5,3084.7,0.00486579]
[1767369290056,0.16217,3085.7,3084.7,0.00486579]
[1767369293047,3.24786579,3086.5,3084.7,0.00486579]
[1767369293251,0.16214,3086.2,3084.7,1.21804581]
[1767369296850,0.00486579,3086.5,3084.7,1.21804581]
[1767369297056,0.00486579,3086.5,3085.0,1.11400389]
[1767369297853,0.00486579,3086.5,3085.3,1.11400389]
[1767369298555,0.16209,3087.3,3085.5,1.27618389]
[1767369298757,0.16206,3087.8,3085.8,1.11400389]
[1767369299159,0.16206,3087.8,3085.8,1.27616389]
[1767369299662,0.16206,3087.8,3086.5,0.00486579]
[1767369299954,0.16206,3087.8,3086.5,1.11886968]
[1767369300263,0.00297445,3087.8,3086.5,1.12248019]
[1767369300760,0.162,3088.9,3086.8,1.11400389]
[1767369300960,0.162,3088.9,3086.9,1.11400389]
[1767369301256,1.18737635,3089.6,3087.1,1.27609389]
[1767369301460,0.16201,3088.9,3087.1,1.11400389]
[1767369301653,0.00483901,3088.3,3087.7,0.00485775]
[1767369301849,0.16201,3088.9,3087.7,0.00485775]
[1767369301850,0.00347342,3088.9,3087.7,0.00485775]
[1767369302048,1.18737635,3090.3,3087.7,1.11886164]
[1767369303156,1.19002378,3090.3,3087.7,1.11886164]
[1767369304062,0.16197,3089.6,3087.7,1.11886164]
[1767369305662,1.18737635,3089.2,3087.7,0.00485775]
[1767369306258,0.16201,3088.7,3087.7,0.00485775]
[1767369306859,0.16199,3089.2,3087.7,0.00485775]
[1767369307158,0.162,3088.9,3087.7,0.00485775]
[1767369308364,1.18737635,3089.3,3087.7,0.00485775]
[1767369308958,0.16202,3088.7,3087.7,0.00485775]
[1767369310465,0.16202,3088.6,3087.7,0.00485775]
[1767369311055,0.16202,3088.6,3086.9,1.11400389]
[1767369312071,0.00485775,3088.1,3087.4,0.00485775]
[1767369312263,0.00822251,3088.1,3087.4,0.00485775]
[1767369312756,0.16198,3089.4,3087.5,1.11400389]
[1767369313167,0.16198,3089.4,3087.6,1.11400389]
[1767369313568,0.16195,3090.0,3087.6,1.11400389]
[1767369313768,0.16596628,3090.0,3087.8,1.27606389]
[1767369313970,0.16596628,3090.0,3087.9,1.27605389]
[1767369314160,0.16596628,3090.0,3088.0,1.11400389]
[1767369314562,0.00401628,3090.0,3088.0,1.11400389]
[1767369314764,0.16196,3089.8,3088.0,1.11400389]
[1767369314961,0.16197,3089.6,3088.0,1.11400389]
[1767369315369,0.00401628,3090.0,3088.0,1.11400389]
[1767369316074,0.00401628,3090.0,3088.0,1.27605389]
[1767369316964,4.276,3090.8,3088.6,1.11400389]
[1767369317166,0.1619,3091.0,3089.4,1.11886164]
[1767369318272,0.16426048,3091.0,3089.4,1.12286338]
[1767369321271,0.00236048,3091.0,3089.4,1.12286338]
[1767369324673,0.16191,3090.7,3089.4,1.12286338]
[1767369324876,0.16193,3090.4,3089.4,0.00885949]
[1767369325076,0.16194,3090.2,3089.4,0.00885949]
[1767369326480,0.16194,3090.1,3089.4,0.00885949]
[1767369326781,0.16194,3090.1,3088.4,1.1280725]
[1767369327378,1.06882137,3091.0,3088.4,1.1280725]
[1767369327580,0.16191,3090.7,3088.6,1.1280725]
[1767369327770,0.16191,3090.7,3089.3,0.00485775]
[1767369327771,0.00485775,3090.0,3089.3,0.00485775]
[1767369328971,0.16680775,3090.0,3089.3,0.00485775]
[1767369329478,0.16680775,3090.0,3088.7,1.1280725]
[1767369329874,0.16680775,3090.0,3088.6,0.00311936]
[1767369329875,0.00485775,3090.0,3088.6,0.00311936]
[1767369330275,1.24622724,3089.7,3087.7,1.1280725]
[1767369330475,1.24622724,3089.7,3088.4,0.00485775]
[1767369330476,0.16199,3089.1,3088.4,0.00485775]
[1767369330772,0.16197,3089.6,3088.4,0.00485775]
[1767369330976,0.16197,3089.6,3088.4,1.13293025]
[1767369331379,0.16197,3089.6,3088.4,1.13610144]
[1767369332985,0.16197,3089.5,3088.4,0.00802894]
[1767369333193,0.16198,3089.3,3087.9,1.1280725]
[1767369334181,0.16195,3089.9,3088.4,1.1280725]
[1767369336683,0.16196,3089.7,3088.4,1.1280725]
[1767369336890,1.25108499,3090.0,3088.4,1.1280725]
[1767369336891,0.16197,3089.5,3088.4,1.1280725]
[1767369337586,0.00485775,3090.0,3088.4,1.1280725]